Cogmind - Beta 14 @@@ ROGUE MODE // 2024.11.09 @ 02:14:14 Player: Fangrelle Result: Destroyed by B0-O60(R) with Subdweller Machine Gun Performance ------------- Evolutions (0) 0 Regions Visited (2) 400 Robots Destroyed (36) 180 Value Destroyed (722) 722 Prototype IDs (0) 0 Alien Tech Used (0) 0 Bonus (0) 0 TOTAL SCORE: 1302 Bonus ------- None Cogmind --------- Core Integrity 0/250 Matter 11/300 Energy 100/100 System Corruption 5% Temperature Cool (0) Movement Core (1350) Ox26 Location -10/Subcaves Parts ------- > --- POWER (1) -------- (None) > --- PROPULSION (2) --- (None) > --- UTILITY (2) ------ Huge Storage Unit Seismic Detector > --- WEAPON (2) ------- (None) > --- INVENTORY (25) --- Improved Ion Engine Small Storage Unit Hacking Suite Heavy Assault Rifle Heavy Assault Rifle Heavy Assault Rifle Heavy Assault Rifle Heavy Assault Rifle Improved Light Cannon Improved Light Cannon Improved Light Cannon Improved Light Cannon Datajack Peak State ------------ > --- POWER ------------ Improved Ion Engine > --- PROPULSION ------- Light Treads Light Treads > --- UTILITY ---------- Huge Storage Unit Seismic Detector > --- WEAPON ----------- Heavy Assault Rifle Heavy Assault Rifle > --- INVENTORY -------- Improved Ion Engine Improved Ion Engine Improved Ion Engine Compact Wheel Small Storage Unit Heavy Assault Rifle Heavy Assault Rifle Heavy Assault Rifle Heavy Assault Rifle Heavy Assault Rifle Heavy Assault Rifle [Rating: 12] Favorites ----------- Power Improved Ion Engine Engine Improved Ion Engine Propulsion Light Treads Treads Light Treads Wheel Compact Wheel Utility Seismic Detector Device Seismic Detector Storage Huge Storage Unit Weapon Heavy Assault Rifle Energy Gun Small Laser Ballistic Gun Heavy Assault Rifle Ballistic Cannon Improved Light Cannon Launcher Grenade Launcher Build | -11 -10 -10 ------- Run | Yrd Mat Sub Slots Evolved . | . . . Power . | . . . Propulsion . | . . . Utility . | . . . Weapon . | . . . Parts Attached 25 | 7 14 4 Power 4 | 1 2 1 Engine 4 | 1 2 1 Core . | . . . Reactor . | . . . Propulsion 5 | 2 3 . Treads 4 | 2 2 . Leg . | . . . Wheel 1 | . 1 . Hover . | . . . Flight . | . . . Utility 3 | 2 1 . Device 1 | 1 . . Storage 2 | 1 1 . Processor . | . . . Hackware . | . . . Protection . | . . . Artifact . | . . . Weapon 13 | 2 8 3 Energy Gun 2 | 2 . . Energy Cannon . | . . . Ballistic Gun 7 | . 6 1 Ballistic Cannon 2 | . 2 . Launcher 2 | . . 2 Special Weapon . | . . . Impact Weapon . | . . . Slashing Weapon . | . . . Piercing Weapon . | . . . Special Melee Weapon . | . . . Unidentified Prototypes . | . . . Parts Lost 10 | . 5 5 Power 3 | . 1 2 Propulsion 3 | . 2 1 Utility . | . . . Weapon 4 | . 2 2 Highest Loss Streak 2 | . 2 2 To Critical Strikes 1 | . . 1 Average Slot Usage (%) 94 | . 95 65 Engine 13 | . 13 12 Treads 22 | . 22 1 Wheel 1 | . 1 . Device 14 | . 14 14 Storage 14 | . 14 14 Energy Gun 1 | . 1 . Ballistic Gun 22 | . 23 11 Ballistic Cannon 3 | . 3 . Peak Build Rating 12 | 7 12 11 Average Rating 10 | 5 10 8 On Entrance 6 | . 7 11 Naked Turns . | . . . Heaviest Build 96 | 13 96 94 Greatest Support 40 | 40 40 20 Greatest Overweight (x) 31 | . 31 31 Average Overweight (x) 2 | . 2 24 Largest Inventory Capacity 25 | 8 25 25 Average Capacity 24 | 7 24 25 Most Carried 14 | 3 14 14 Average Carried 10 | 2 10 13 Final Capacity 25 | 8 25 25 Final Carried 14 | 3 14 13 Class Distribution -------------------- 100% | Mutant Dominant Class ---------------- Mutant | -10/Materials Mutant | -10/Subcaves Resources | -11 -10 -10 ----------- Run | Yrd Mat Sub Matter Collected 830 | 270 560 . Remotely . | . . . Salvage Created 919 | 208 695 16 Parts 59 | 10 45 4 Haulers Intercepted . | . . . Recyclers Shooed . | . . . Parts Field Recycled . | . . . Retrieved Matter . | . . . Parts Self-Destructed 2 | . . 2 Prevented . | . . . Kills | -11 -10 -10 ------- Run | Yrd Mat Sub Combat Hostiles Destroyed 24 | . 22 2 Guns 20 | . 19 1 Cannons 3 | . 3 . AOE 1 | . . 1 Classes Destroyed 7 | 3 4 . Worker 3 | 2 1 . Tunneler 3 | 3 . . Recycler 1 | 1 . . Operator 2 | . 2 . Watcher 3 | . 3 . Swarmer 10 | . 8 2 Grunt 14 | . 14 . Best Kill Streak 6 | 6 3 2 Combat Bots Only 3 | . 3 2 Max Kills in Single Turn 2 | 1 2 1 Gunslinging 1 | . 1 . Exploded 1 | . . 1 Melee . | . . . Uniques/NPCs Destroyed . | . . . Combat | -11 -10 -10 -------- Run | Yrd Mat Sub Hostile Shots Fired 181 | . 115 66 Missed 52 | . 31 21 Damage Taken 1471 | . 1012 459 Core 251 | . 138 113 Absorbed by Shields . | . . . Core Remaining (%) 100 | 100 . . Volleys Fired 98 | 11 78 9 Largest 2 | 2 2 2 Hottest 80 | 80 80 53 Shots Fired 193 | 22 155 16 Gun 173 | 22 136 15 Cannon 19 | . 19 . Launcher 1 | . . 1 Special . | . . . Kinetic 152 | . 137 15 Thermal 40 | 22 18 . Explosive 1 | . . 1 Electromagnetic . | . . . Robot Hit Streak 16 | 5 16 3 Robot Miss Streak 5 | 3 3 5 Penetration Max . | . . . Secondary Targets 5 | . 5 . Max Gunslinging Chain 1 | . 1 . Shots Hit Robots 116 | 13 99 4 Core Hits 46 | 7 37 2 Critical Kills . | . . . Critical Parts Destroyed 1 | . 1 . Critical Strikes 2 | . 2 . Destroy 1 | . 1 . Blast 1 | . 1 . Melee Attacks . | . . . Impact . | . . . Slashing . | . . . Piercing . | . . . Sneak Attacks . | . . . Combat Hostiles . | . . . Follow-up Attacks . | . . . Damage Inflicted 1775 | 152 1492 131 Guns 1498 | 152 1264 82 Cannons 228 | . 228 . Explosions 49 | . . 49 Melee . | . . . Ramming . | . . . Kinetic 1423 | . 1341 82 Thermal 303 | 152 151 . Explosive 49 | . . 49 Electromagnetic . | . . . Impact . | . . . Slashing . | . . . Piercing . | . . . Highest Corruption 5 | . 5 5 Average Corruption 4 | . 4 5 Corruption Purged . | . . . Corruption Blocked . | . . . Effects 99 | . 96 3 Message Errors 23 | . 22 1 Matter Fused 32 | . 30 2 Heat Flow Errors 11 | . 11 . Energy Discharges 11 | . 11 . Parts Rejected 1 | . 1 . Parts Fused 1 | . 1 . Data Loss (minor) 9 | . 9 . Data Loss (major) 4 | . 4 . Misfires 4 | . 4 . Alerts 2 | . 2 . Weapon Failures 1 | . 1 . Overload Shots . | . . . Overflow Damage 10 | . 10 . Projectiles 10 | . 10 . Explosions . | . . . Melee . | . . . Knockbacks 3 | . 3 . Impact . | . . . Kinetic 3 | . 3 . Secondary . | . . . Self-Inflicted Damage . | . . . Shots . | . . . Rammed . | . . . Targets Rammed . | . . . Kicked . | . . . Crushed . | . . . Highest Temperature 250 | 108 250 . Average Temperature 77 | 48 81 . Received Heat Transfer 462 | . 462 . Effects 1 | . 1 . Energy Bleed 1 | . 1 . Siege Activations . | . . . Robots Corrupted . | . . . Combat Hostiles . | . . . Parts Fried . | . . . Impact Corruptions . | . . . Robots Melted . | . . . Combat Hostiles . | . . . Parts Melted . | . . . Heat Transferred 700 | 350 350 . Parts Sabotaged . | . . . Parts Stolen . | . . . Parts Stripped . | . . . Power Chain Reactions . | . . . Alert | -11 -10 -10 ------- Run | Yrd Mat Sub Peak Influence 234 | 30 234 . Initial 19 | . 19 . Average 88 | 9 90 . Maximum Alert Level 1 | . 1 . Low Security (%) 85 | 100 85 . Level 1 14 | . 14 . Level 2 . | . . . Level 3 . | . . . Level 4 . | . . . Level 5 . | . . . High Security . | . . . Max Security . | . . . Squads Dispatched 5 | . 5 . Investigation 3 | . 3 . Extermination . | . . . Reinforcement 2 | . 2 . Assault . | . . . Garrison . | . . . Intercept . | . . . Searches Triggered . | . . . Construction Impeded . | . . . Haulers Reinforced . | . . . Active Scanning Responses . | . . . Cargo Convoy Interrupts . | . . . Stealth | -11 -10 -10 --------- Run | Yrd Mat Sub Distress Signals . | . . . Communications Jammed . | . . . Distress Signals . | . . . Times Spotted 32 | . 28 4 Peak Tracking Total 3 | . 3 3 Tactical Retreats 1 | . 1 . Traps | -11 -10 -10 ------- Run | Yrd Mat Sub Traps Triggered 5 | . 5 . Indirectly . | . . . Trap Hack Attempts . | . . . Triggered . | . . . Disarmed . | . . . Reprogrammed . | . . . Reused . | . . . Traps Extracted . | . . . Installed . | . . . Triggered . | . . . Machines | -11 -10 -10 ---------- Run | Yrd Mat Sub Machines Disabled 1 | . 1 . Max in Single Turn 1 | . 1 . Machines Repaired . | . . . Machines Dismantled . | . . . Machines Sabotaged . | . . . Overloaded Fab Kills . | . . . Hacking | -11 -10 -10 --------- Run | Yrd Mat Sub Machines Accessed 9 | . 9 . Terminals 7 | . 7 . Fabricators . | . . . Repair Stations . | . . . Recycling Units 2 | . 2 . Scanalyzers . | . . . Garrison Access . | . . . Total Hacks 35 | . 35 . Successful 22 | . 22 . Failed 13 | . 13 . Catastrophic 1 | . 1 . Database Lockouts . | . . . Manual 32 | . 32 . Terminals 29 | . 29 . Fabricators . | . . . Repair Stations . | . . . Recycling Units 6 | . 6 . Scanalyzers . | . . . Garrison Access . | . . . Terminal Hacks . | . . . Fabricator Hacks . | . . . Repair Station Hacks . | . . . Recycling Unit Hacks 2 | . 2 . Retrieve Components 2 | . 2 . Scanalyzer . | . . . Garrison Access Hacks . | . . . Unauthorized Hacks 20 | . 20 . Terminals 18 | . 18 . Assimilate 5 | . 5 . Botnet 5 | . 5 . Operators 2 | . 2 . Skim 6 | . 6 . Fabricators . | . . . Repair Stations . | . . . Recycling Units 2 | . 2 . Tunnel 2 | . 2 . Scanalyzers . | . . . Garrison Access . | . . . Data Cores Recovered . | . . . Used . | . . . Hacking Detections 8 | . 8 . Full Trace Events . | . . . Feedback Events . | . . . Feedback Blocked . | . . . Robot Schematics Acquired . | . . . Robots Built . | . . . Authchips . | . . . Time . | . . . Total Robot Build Rating . | . . . Part Schematics Acquired . | . . . Parts Built . | . . . Authchips . | . . . Time . | . . . Total Part Build Rating . | . . . Parts Repaired . | . . . Time . | . . . Parts Recycled . | . . . Recycled Matter . | . . . Retrieved Matter . | . . . Retrieved Components 18 | . 18 . Parts Scanalyzed . | . . . Part Schematics Acquired . | . . . Parts Damaged . | . . . Bothacking | -11 -10 -10 ------------ Run | Yrd Mat Sub Used RIF Installer . | . . . Robots Hacked . | . . . Non-combat . | . . . Combat . | . . . Robot Hacks Applied . | . . . Relay Couplers Released . | . . . Fabnet Peak Effective % . | . . . Robots Rewired . | . . . Allies Hacked . | . . . Hacks Repelled . | . . . Allies | -11 -10 -10 -------- Run | Yrd Mat Sub Total Allies 1 | . 1 . Largest Group 1 | . 1 . Highest-Rated Group 10 | . 10 . Highest-Rated Ally 10 | . 10 . Total Orders 1 | . 1 . STAY 1 | . 1 . Ally Attacks . | . . . Total Damage . | . . . Kills . | . . . Allies Corrupted . | . . . Allies Melted . | . . . Intel | -11 -10 -10 ------- Run | Yrd Mat Sub Robot Analysis Total . | . . . Derelict Logs Recovered . | . . . Drone Launches . | . . . Drone Recoveries . | . . . Exploration | -11 -10 -10 ------------- Run | Yrd Mat Sub Turns Passed 4773 | 145 4528 100 Spaces Moved 1271 | 63 1204 4 Core 6 | 1 2 3 Treads 1137 | 62 1074 1 Legs . | . . . Wheels 128 | . 128 . Hover . | . . . Flight . | . . . Fastest Speed 50 | 50 160 480 Average Speed 329 | 158 335 1307 Slowest Speed 1600 | 160 1600 1600 Overloaded Moves . | . . . Propulsion Burnouts . | . . . Robots Hopped . | . . . Cave-ins Triggered . | . . . Exploration Rate (%) 35 | 4 99 2 Regions Visited 2 Branch Regions 1 Pre-discovered Areas 2 | . 2 . Known Exits Taken 1 | . 1 . Unknown Exits Taken 1 | 1 . . Scrap Searched . | . . . Spaces Dug . | . . . Terrain Destroyed 8 | . 1 7 Melee . | . . . Projectile 1 | . 1 . AOE 7 | . . 7 Terrain Rammed . | . . . Walls Destroyed . | . . . Machines Disabled . | . . . Actions | -11 -10 -10 --------- Run | Yrd Mat Sub Total 1665 | 83 1548 34 Wait 247 | . 230 17 Move 1269 | 62 1203 4 Hop . | . . . Pick Up 19 | 3 16 . Fast Attach 12 | 7 5 . Attach 5 | . 4 1 Detach . | . . . Swap 8 | . 5 3 Drop 7 | . 7 . Fire 98 | 11 78 9 Melee . | . . . Ram . | . . . Kick . | . . . Crush . | . . . Escape Stasis . | . . . Rewire . | . . . Trap . | . . . Miscellaneous . | . . . Route ------- -11/Scrapyard -10/Materials (discovered 5 exits: [*Mat x3] / *Min / *Sub) -10/Subcaves History --------- Turn | Location | Event 13 | -11/Scrapyard | Discovered new exit (range 16) 146 | -11/Scrapyard | Entered Materials 304 | -10/Materials | Build established: Mutant 740 | -10/Materials | Discovered new exit (range 9) 1348 | -10/Materials | Discovered new exit (range 8) 1850 | -10/Materials | Discovered new exit (range 14) 3226 | -10/Materials | Discovered new exit (range 8) 3868 | -10/Materials | Core integrity fell below 50% 4221 | -10/Materials | Loaded intel: 2 recycling unit locations 4292 | -10/Materials | Learned 2 Storage zone layouts 4312 | -10/Materials | Loaded intel: 10 interactive machine locations 4322 | -10/Materials | Identified exit to Subcaves 4322 | -10/Materials | Learned location of 2 exits from Materials 4324 | -10/Materials | Identified exit to Mines 4338 | -10/Materials | Learned 2 Materials zone layouts 4361 | -10/Materials | Learned location of 2 exits from Materials 4674 | -10/Materials | Entered Subcaves 4761 | -10/Subcaves | Core integrity fell below 20% 4774 | -10/Subcaves | Destroyed by B0-O60(R) with Subdweller Machine Gun Last Messages --------------- 04657_ QF7SFZ=W&W%R >QR JKD MU2UGEO LOCATION=SUBCAVES AMBIENT_HEAT=-10 GOAL=ESCAPE 04683_ Lgt. Treads destroyed. 04684_ AU3I5KCBTX2Q=0ZQ<0,MP>PI4F JTGBBI6 04688_ Destroyed Lgt. Ion Engine. 04689_ Critical hit (Destroy). 04689_ Imp. Ion Engine destroyed. 04698_ S-10 Pest destroyed. 04700_ System corrupted: Matter fused (-10). 04700_ Subatomizers dissect the Flight Unit. 04703_ Flight Unit fries itself beyond repair. 04704_ S-10 Pest destroyed. 04721_ S-10 Pest suffers critical hit (Destroy). 04731_ S-10 Pest destroyed. 04739_ Hvy. Assault Rifle destroyed. 04751_ System corrupted: Matter fused (-5). 04770_ Imp. Ion Engine destroyed. 04772_ Grenade Launcher destroyed. Map ----- +----------------------------------------------------+ | ?????????????????????????????????????????????????? | | ?????????????????????????????????????????????????? | | ?????????????????????????????????????????????????? | | ?????????????????????????????????????????????????? | | ?????????????????????????????????????????????????? | | ?????????????????????????????????????????????????? | | ?????????????????????????????????????????????????? | | ?????????????????????????????????????????????????? | | ?????????????????????????????????????????????????? | | ?????????????????????????????????????????????????? | | ???????????????????????????? ??????????????????? | | ???????????????????????????? #?????????????????? | | ???????????????????????????? ????????????????? | | ???????????????????????????? ???????????????? | | ???????????????????????????? ????????????????? | | ???????????????????????????? ?????????????????? | | ????????????????????????#### ?????????????????? | | ???????????????????????## ??????????????????? | | ???????????????????????# #??????????????????? | | ???????????????????????# ###????????????????? | | ??????????????????????## ####?????????????? | | ?????????????????????## ##????????????? | | ?????????????????????# #????????????? | | ?????????????????????# #????????????? | | ??????????????????????# #????????????? | | ????????????????????????#@ #????????????????? | | ????????????????????????##R ##????????????????? | | ?????????????????????????# #?????????????????? | | ?????????????????????????# #?????????????????? | | ????????????????????????# #?????????????????? | | ????????????????????????# #?????????????????? | | ????????????????????????## #?????????????????? | | ????????????????????????? # ##?????????????????? | | ?????????????????????????# ??????????????????? | | ????????????????????????? ##?????????????????? | | ????????????????????????? # ??????????????????? | | ????????????????????????? ##??????????????????? | | ???????????????????????? % #???????????????????? | | ???????????????????????? ????????????????????? | | ???????????????????????? ????????????????????? | | ???????????????????????? % ????????????????????? | | ??????????????????????????? ????????????????????? | | ?????????????????????????????????????????????????? | | ?????????????????????????????????????????????????? | | ?????????????????????????????????????????????????? | | ?????????????????????????????????????????????????? | | ?????????????????????????????????????????????????? | | ?????????????????????????????????????????????????? | | ?????????????????????????????????????????????????? | | ?????????????????????????????????????????????????? | +----------------------------------------------------+ Best States ------------- Heat Dissipation 25 Energy Generation 12 Energy Capacity 265 Matter Stores 300 Matter Capacity 300 Sight Range 16 Terrain Scan Density 10 Evasion (%) 40 Recoil Reduction 2 Item Schematics ----------------- None Robot Schematics ------------------ None Fabricated ------------ Nothing Alien Tech Used ----------------- None Achievements -------------- None Challenges ------------ None Game ------ Seed GravitySeismicImmobilizer Manual? 0 Play Time 00:17:23 Cumulative 24.5 hours Start 2024.11.09 @ 01:58:26 End 2024.11.09 @ 02:14:14 Sessions 1 Manual Loads 0 Difficulty Rogue Special Mode None Game No. 48 Rogue 48 Adventurer 0 Explorer 0 Win Type - Total 0 Types 0/0/0/0/0/0/0/0/0 Lore% 21 Gallery% 24 Achievement% 28 Wizard Run 0 Options --------- Layout 0 ASCII 0 Keyboard 0 Movement Mouse Keybinds 0 Fullscreen 1 Font 24/Smallcaps Map View 183x50 Zoom Use 49% Tactical HUD 1 Map Filters NONE Filters NONE Steam 1 RUN: b2eee7d6-f78d-4efa-84eb-4860ccee72a2